Workbook

Sheet Plan_Orcament_Licit_TO_2024
C1: MINISTÉRIO DA INTEGRAÇÃO E DO DESENVOLVIMENTO REGIONAL (MIDR)
C2: COMPANHIA DO DESENVOLVIMENTO DOS VALES DO SÃO FRANCISCO E DO PARNAÍBA
C3: ÁREA DE GESTÃO DOS EMPREENDIMENTOS DE IRRIGAÇÃO (AI)
A6: ANEXO-I
A8: PLANILHA DE QUANTIDADES PARA: SEDE (DF), 1ª/SR, 2ª/SR, 8ª/SR, 9ª/SR, 10ª/SR, 11ª/SR, 12ª/SR E 16ª/SR
A10: SISTEMAS DE IRRIGAÇÃO: ASPERSÃO CONVENCIONAL-1 ha, MICROASPERSÃO-1 ha e MICROASPERSÃO-0,5 ha, GOTEJAMENTO--1 ha, GOTEJAMENTO-0,5 ha E MINI KIT DE IRRIGAÇÃO (600 m²)
A12: MATERIAIS e SERVIÇOS
A15: GRUPO 1 | B15: SISTEMAS DE IRRIGAÇÃO PARA IMPLANTAÇÃO NA ÁREA DE ATUAÇÃO DA SEDE – DISTRITO FEDERAL (AMPLA CONCORRÊNCIA)
A16: ITEM | B16: CATMAT | C16: DESCRIÇÃO/ESPECIFICAÇÃO | D16: COTA/DECRETO | E16: UNIDADE DE MEDIDA | F16: QUANTIDADE MÁXIMA ANUAL | G16: PREÇO UNITÁRIO (R$) | H16: PREÇO TOTAL (R$)
A17: 1 | B17: 470243 | C17: Sistema de irrigação por aspersão, malha fixa, com abrigo para o conjunto motobomba e capacidade para irrigar área de 1,0 hectare, para tensão nominal de 220V. | D17: Ampla concorrência | E17: Unidade | F17: 95 | G17: 13868.44405 | H17: =F17*G17 -> 1317502.185
A18: =A17+1 -> 2 | B18: 470243 | C18: Sistema de Irrigação localizada, por microaspersão, com sistema de filtragem e fertirrigação, com capacidade para irrigar área de 1,0 hectare, para tensão nominal de 220V. | D18: Ampla concorrência | E18: Unidade | F18: 95 | G18: 30967.5986 | H18: =F18*G18 -> 2941921.867
A19: =A18+1 -> 3 | B19: 470243 | C19: Sistema de irrigação localizada, por microaspersão, fixo, com sistema de filtragem, abrigo para o conjunbto motobomba e capacidade para irrigar área de 0,50 hectare, para tensão nominal de 220V. | D19: Ampla concorrência | E19: Unidade | F19: 47 | G19: 18271.6238 | H19: 858766.3186
A20: 4 | B20: 470243 | C20: Sistema de Irrigação localizada, por gotejamento, com sistema de filtragem e fertirrigação, com capacidade para irrigar área de 1,0 hectare, para tensão nominal de 220V. | D20: Ampla concorrência | E20: Unidade | F20: 95 | G20: 31617.486 | H20: 3003661.17
A21: 5 | B21: 470243 | C21: Sistema de Irrigação localizada, por gotejamento, com sistema de filtragem e fertirrigação, com capacidade para irrigar área de 0,5 hectare, para tensão nominal de 220V. | D21: Ampla concorrência | E21: Unidade | F21: 47 | G21: 18152.1862 | H21: 853152.7514
A22: 6 | B22: 470243 | C22: Minikit de irrigação com capacidade para 600 m2 de horta, 1.260 m2 de culturas temporárias ou 5.400 m2 de fruticultura, para tensão nominal de 220V. | D22: Ampla concorrência | E22: Unidade | F22: 95 | G22: 4370.705 | H22: 415216.975
A23: GRUPO 2 | B23: SISTEMAS DE IRRIGAÇÃO PARA IMPLANTAÇÃO NA ÁREA DE ATUAÇÃO DA SEDE – DISTRITO FEDERAL (COTA DE ATÉ 25% - RESERVADA PARA ME/EPP)
A24: ITEM | B24: CATMAT | C24: DESCRIÇÃO/ESPECIFICAÇÃO | D24: COTA/DECRETO | E24: UNIDA DE MEDIDA | F24: QUANTIDADE MÁXIMA ANUAL | G24: PREÇO UNITÁRIO (R$) | H24: PREÇO TOTAL (R$)
A25: 7 | B25: 470243 | C25: Sistema de irrigação por aspersão, malha fixa, com abrigo para o conjunto motobomba e capacidade para irrigar área de 1,0 hectare, para tensão nominal de 220V. | D25: Cota de até 25% reservada para ME/EPP | E25: Unidade | F25: 5 | G25: 13868.44405 | H25: =F25*G25 -> 69342.22026
A26: =A25+1 -> 8 | B26: 470243 | C26: Sistema de Irrigação localizada, por microaspersão, com sistema de filtragem e fertirrigação, com capacidade para irrigar área de 1,0 hectare, para tensão nominal de 220V. | D26: Cota de até 25% reservada para ME/EPP | E26: Unidade | F26: 5 | G26: 30967.5986 | H26: 154837.993
A27: 9 | B27: 470243 | C27: Sistema de irrigação localizada, por microaspersão, fixo, com sistema de filtragem, abrigo para o conjunbto motobomba e capacidade para irrigar área de 0,50 hectare, para tensão nominal de 220V. | D27: Cota de até 25% reservada para ME/EPP | E27: Unidade | F27: 3 | G27: 18271.6238 | H27: 54814.8714
A28: 10 | B28: 470243 | C28: Sistema de Irrigação localizada, por gotejamento, com sistema de filtragem e fertirrigação, com capacidade para irrigar área de 1,0 hectare, para tensão nominal de 220V. | D28: Cota de até 25% reservada para ME/EPP | E28: Unidade | F28: 5 | G28: 31617.486 | H28: 158087.43
A29: 11 | B29: 470243 | C29: Sistema de Irrigação localizada, por gotejamento, com sistema de filtragem e fertirrigação, com capacidade para irrigar área de 0,5 hectare, para tensão nominal de 220V. | D29: Cota de até 25% reservada para ME/EPP | E29: Unidade | F29: 3 | G29: 18152.1862 | H29: 54456.5586
A30: 12 | B30: 470243 | C30: Minikit de irrigação com capacidade para 600 m2 de horta, 1.260 m2 de culturas temporárias ou 5.400 m2 de fruticultura, para tensão nominal de 220V. | D30: Cota de até 25% reservada para ME/EPP | E30: Unidade | F30: 5 | G30: 4370.705 | H30: 21853.525
A31: GRUPO 3 | B31: SISTEMAS DE IRRIGAÇÃO PARA IMPLANTAÇÃO NA ÁREA DE ATUAÇÃO DA 2ª SR – BAHIA (AMPLA CONCORRÊNCIA)
A32: ITEM | B32: CATMAT | C32: DESCRIÇÃO/ESPECIFICAÇÃO | D32: COTA/DECRETO | E32: UNIDA DE MEDIDA | F32: QUANTIDADE MÁXIMA ANUAL | G32: PREÇO UNITÁRIO (R$) | H32: PREÇO TOTAL (R$)
A33: 13 | B33: 470243 | C33: Sistema de irrigação por aspersão, malha fixa, com abrigo para o conjunto motobomba e capacidade para irrigar área de 1,0 hectare, para a tensão nominal de 127V. | D33: Ampla concorrência | E33: Unidade | F33: 23 | G33: 13738.44405 | H33: =F33*G33 -> 315984.2132
A34: 14 | B34: 470243 | C34: Sistema de Irrigação localizada, por microaspersão, com sistema de filtragem e fertirrigação, com capacidade para irrigar área de 1,0 hectare, para a tensão nominal de 127V. | D34: Ampla concorrência | E34: Unidade | F34: 285 | G34: 27018.2279 | H34: 7700194.951
A35: 15 | B35: 470243 | C35: Sistema de Irrigação localizada, por microaspersão, com sistema de filtragem e fertirrigação, com capacidade para irrigar área de 0,5 hectare, para a tensão nominal de 127V. | D35: Ampla concorrência | E35: Unidade | F35: 47 | G35: 18316.5379 | H35: 860877.2813
A36: 16 | B36: 470243 | C36: Sistema de Irrigação localizada, por gotejamento, com sistema de filtragem e fertirrigação, com capacidade para irrigar área de 1,0 hectare, para a tensão nominal de 127V. | D36: Ampla concorrência | E36: Unidade | F36: 95 | G36: 27646.2753 | H36: 2626396.153
A37: 17 | B37: 470243 | C37: Sistema de Irrigação localizada, por gotejamento, com sistema de filtragem e fertirrigação, com capacidade para irrigar área de 0,5 hectare, para a tensão nominal de 127V. | D37: Ampla concorrência | E37: Unidade | F37: 47 | G37: 18229.7107 | H37: 856796.4029
A38: 18 | B38: 470243 | C38: Sistema de irrigação por aspersão, malha fixa, com abrigo para o conjunto motobomba e capacidade para irrigar área de 1,0 hectare, para tensão nominal de 220V. | D38: Ampla concorrência | E38: Unidade | F38: 23 | G38: 13738.44405 | H38: 315984.2132
A39: 19 | B39: 470243 | C39: Sistema de Irrigação localizada, por microaspersão, com sistema de filtragem e fertirrigação, com capacidade para irrigar área de 1,0 hectare, para tensão nominal de 220V. | D39: Ampla concorrência | E39: Unidade | F39: 285 | G39: 30681.2879 | H39: 8744167.052
A40: 20 | B40: 470243 | C40: Sistema de Irrigação localizada, por microaspersão, com sistema de filtragem e fertirrigação, com capacidade para irrigar área de 0,5 hectare, para tensão nominal de 220V. | D40: Ampla concorrência | E40: Unidade | F40: 47 | G40: 18243.3183 | H40: 857435.9601
A41: 21 | B41: 470243 | C41: Sistema de Irrigação localizada, por gotejamento, com sistema de filtragem e fertirrigação, com capacidade para irrigar área de 1,0 hectare, para tensão nominal de 220V. | D41: Ampla concorrência | E41: Unidade | F41: 95 | G41: 31309.8153 | H41: 2974432.453
A42: 22 | B42: 470243 | C42: Sistema de Irrigação localizada, por gotejamento, com sistema de filtragem e fertirrigação, com capacidade para irrigar área de 0,5 hectare, para tensão nominal de 220V. | D42: Ampla concorrência | E42: Unidade | F42: 47 | G42: 18155.2507 | H42: 853296.7829
A43: GRUPO 4 | B43: SISTEMAS DE IRRIGAÇÃO PARA IMPLANTAÇÃO NA ÁREA DE ATUAÇÃO DA 2ª SR – BAHIA (COTA DE ATÉ 25% - RESERVADA PARA ME/EPP)
A44: ITEM | B44: CATMAT | C44: DESCRIÇÃO/ESPECIFICAÇÃO | D44: COTA/DECRETO | E44: UNIDA DE MEDIDA | F44: QUANTIDADE MÁXIMA ANUAL | G44: PREÇO UNITÁRIO (R$) | H44: PREÇO TOTAL (R$)
A45: 23 | B45: 470243 | C45: Sistema de irrigação por aspersão, malha fixa, com abrigo para o conjunto motobomba e capacidade para irrigar área de 1,0 hectare, para a tensão nominal de 127V. | D45: Cota de até 25% reservada para ME/EPP | E45: Unidade | F45: 2 | G45: 13738.44405 | H45: =F45*G45 -> 27476.8881
A46: 24 | B46: 470243 | C46: Sistema de Irrigação localizada, por microaspersão, com sistema de filtragem e fertirrigação, com capacidade para irrigar área de 1,0 hectare, para a tensão nominal de 127V. | D46: Cota de até 25% reservada para ME/EPP | E46: Unidade | F46: 15 | G46: 27018.2279 | H46: 405273.4185
A47: =A46+1 -> 25 | B47: 470243 | C47: Sistema de Irrigação localizada, por microaspersão, com sistema de filtragem e fertirrigação, com capacidade para irrigar área de 0,5 hectare, para a tensão nominal de 127V. | D47: Cota de até 25% reservada para ME/EPP | E47: Unidade | F47: 3 | G47: 18316.5379 | H47: 54949.6137
A48: 26 | B48: 470243 | C48: Sistema de Irrigação localizada, por gotejamento, com sistema de filtragem e fertirrigação, com capacidade para irrigar área de 1,0 hectare, para a tensão nominal de 127V. | D48: Cota de até 25% reservada para ME/EPP | E48: Unidade | F48: 5 | G48: 27646.2753 | H48: 138231.3765
A49: 27 | B49: 470243 | C49: Sistema de Irrigação localizada, por gotejamento, com sistema de filtragem e fertirrigação, com capacidade para irrigar área de 0,5 hectare, para a tensão nominal de 127V. | D49: Cota de até 25% reservada para ME/EPP | E49: Unidade | F49: 3 | G49: 18229.7107 | H49: 54689.1321
A50: 28 | B50: 470243 | C50: Sistema de irrigação por aspersão, malha fixa, com abrigo para o conjunto motobomba e capacidade para irrigar área de 1,0 hectare, para tensão nominal de 220V. | D50: Cota de até 25% reservada para ME/EPP | E50: Unidade | F50: 2 | G50: 13738.44405 | H50: 27476.8881
A51: 29 | B51: 470243 | C51: Sistema de Irrigação localizada, por microaspersão, com sistema de filtragem e fertirrigação, com capacidade para irrigar área de 1,0 hectare, para tensão nominal de 220V. | D51: Cota de até 25% reservada para ME/EPP | E51: Unidade | F51: 15 | G51: 30681.2879 | H51: 460219.3185
A52: 30 | B52: 470243 | C52: Sistema de Irrigação localizada, por microaspersão, com sistema de filtragem e fertirrigação, com capacidade para irrigar área de 0,5 hectare, para tensão nominal de 220V. | D52: Cota de até 25% reservada para ME/EPP | E52: Unidade | F52: 3 | G52: 18243.3183 | H52: 54729.9549
A53: 31 | B53: 470243 | C53: Sistema de Irrigação localizada, por gotejamento, com sistema de filtragem e fertirrigação, com capacidade para irrigar área de 1,0 hectare, para tensão nominal de 220V. | D53: Cota de até 25% reservada para ME/EPP | E53: Unidade | F53: 5 | G53: 31309.8153 | H53: 156549.0765
A54: 32 | B54: 470243 | C54: Sistema de Irrigação localizada, por gotejamento, com sistema de filtragem e fertirrigação, com capacidade para irrigar área de 0,5 hectare, para tensão nominal de 220V. | D54: Cota de até 25% reservada para ME/EPP | E54: Unidade | F54: 3 | G54: 18155.2507 | H54: 54465.7521
A55: GRUPO 5 | B55: SISTEMAS DE IRRIGAÇÃO PARA IMPLANTAÇÃO NA ÁREA DE ATUAÇÃO DA 1ª SR – MINAS GERAIS (AMPLA CONCORRÊNCIA)
A56: ITEM | B56: CATMAT | C56: DESCRIÇÃO/ESPECIFICAÇÃO | D56: COTA/DECRETO | E56: UNIDA DE MEDIDA | F56: QUANTIDADE MÁXIMA ANUAL | G56: PREÇO UNITÁRIO (R$) | H56: PREÇO TOTAL (R$)
A57: 33 | B57: 470243 | C57: Sistema de irrigação por aspersão, malha fixa, com abrigo para o conjunto motobomba e capacidade para irrigar área de 1,0 hectare, para a tensão nominal de 127V. | D57: Ampla concorrência | E57: Unidade | F57: 47 | G57: 13362.56405 | H57: =F57*G57 -> 628040.5104
A58: 34 | B58: 470243 | C58: Sistema de Irrigação localizada, por microaspersão, com sistema de filtragem e fertirrigação, com capacidade para irrigar área de 1,0 hectare, para a tensão nominal de 127V. | D58: Ampla concorrência | E58: Unidade | F58: 28 | G58: 27008.7561 | H58: 756245.1708
A59: 35 | B59: 470243 | C59: Sistema de Irrigação localizada, por microaspersão, com sistema de filtragem e fertirrigação, com capacidade para irrigar área de 0,5 hectare, para a tensão nominal de 127V. | D59: Ampla concorrência | E59: Unidade | F59: 9 | G59: 18138.0367 | H59: 163242.3303
A60: 36 | B60: 470243 | C60: Sistema de Irrigação localizada, por gotejamento, com sistema de filtragem e fertirrigação, com capacidade para irrigar área de 1,0 hectare, para a tensão nominal de 127V. | D60: Ampla concorrência | E60: Unidade | F60: 4 | G60: 27657.3735 | H60: 110629.494
A61: =A60+1 -> 37 | B61: 470243 | C61: Minikit de irrigação com capacidade para 600 m2 de horta, 1.260 m2 de culturas temporárias ou 5.400 m2 de fruticultura, para tensão nominal de 127V. | D61: Ampla concorrência | E61: Unidade | F61: 47 | G61: 4348.185 | H61: 204364.695
A62: GRUPO 6 | B62: SISTEMAS DE IRRIGAÇÃO PARA IMPLANTAÇÃO NA ÁREA DE ATUAÇÃO DA 1ª SR – MINAS GERAIS (COTA DE ATÉ 25% - RESERVADA PARA ME/EPP)
A63: ITEM | B63: CATMAT | C63: DESCRIÇÃO/ESPECIFICAÇÃO | D63: COTA/DECRETO | E63: UNIDA DE MEDIDA | F63: QUANTIDADE MÁXIMA ANUAL | G63: PREÇO UNITÁRIO (R$) | H63: PREÇO TOTAL (R$)
A64: =A61+1 -> 38 | B64: 470243 | C64: Sistema de irrigação por aspersão, malha fixa, com abrigo para o conjunto motobomba e capacidade para irrigar área de 1,0 hectare, para a tensão nominal de 127V. | D64: Cota de até 25% reservada para ME/EPP | E64: Unidade | F64: 3 | G64: 13362.56405 | H64: =F64*G64 -> 40087.69216
A65: 39 | B65: 470243 | C65: Sistema de Irrigação localizada, por microaspersão, com sistema de filtragem e fertirrigação, com capacidade para irrigar área de 1,0 hectare, para a tensão nominal de 127V. | D65: Cota de até 25% reservada para ME/EPP | E65: Unidade | F65: 2 | G65: 27008.7561 | H65: 54017.5122
A66: 40 | B66: 470243 | C66: Sistema de Irrigação localizada, por microaspersão, com sistema de filtragem e fertirrigação, com capacidade para irrigar área de 0,5 hectare, para a tensão nominal de 127V. | D66: Cota de até 25% reservada para ME/EPP | E66: Unidade | F66: 1 | G66: 18138.0367 | H66: 18138.0367
A67: 41 | B67: 470243 | C67: Sistema de Irrigação localizada, por gotejamento, com sistema de filtragem e fertirrigação, com capacidade para irrigar área de 1,0 hectare, para a tensão nominal de 127V. | D67: Cota de até 25% reservada para ME/EPP | E67: Unidade | F67: 1 | G67: 27657.3735 | H67: 27657.3735
A68: 42 | B68: 470243 | C68: Minikit de irrigação com capacidade para 600 m2 de horta, 1.260 m2 de culturas temporárias ou 5.400 m2 de fruticultura, para tensão nominal de 127V. | D68: Cota de até 25% reservada para ME/EPP | E68: Unidade | F68: 3 | G68: 4348.185 | H68: 13044.555
A69: GRUPO 7 | B69: SISTEMAS DE IRRIGAÇÃO PARA IMPLANTAÇÃO NA ÁREA DE ATUAÇÃO DA 16ª SR – MINAS GERAIS (AMPLA CONCORRÊNCIA)
A70: ITEM | B70: CATMAT | C70: DESCRIÇÃO/ESPECIFICAÇÃO | D70: COTA/DECRETO | E70: UNIDA DE MEDIDA | F70: QUANTIDADE MÁXIMA ANUAL | G70: PREÇO UNITÁRIO (R$) | H70: PREÇO TOTAL (R$)
A71: =A68+1 -> 43 | B71: 470243 | C71: Sistema de irrigação por aspersão, malha fixa, com abrigo para o conjunto motobomba e capacidade para irrigar área de 1,0 hectare, para a tensão nominal de 127V. | D71: Ampla concorrência | E71: Unidade | F71: 28 | G71: 13362.56405 | H71: =F71*G71 -> 374151.7935
A72: 44 | B72: 470243 | C72: Sistema de Irrigação localizada, por microaspersão, com sistema de filtragem e fertirrigação, com capacidade para irrigar área de 1,0 hectare, para a tensão nominal de 127V. | D72: Ampla concorrência | E72: Unidade | F72: 19 | G72: 27008.7561 | H72: 513166.3659
A73: 45 | B73: 470243 | C73: Sistema de Irrigação localizada, por gotejamento, com sistema de filtragem e fertirrigação, com capacidade para irrigar área de 0,5 hectare, para a tensão nominal de 127V. | D73: Ampla concorrência | E73: Unidade | F73: 142 | G73: 18052.3395 | H73: 2563432.209
A74: GRUPO 8 | B74: SISTEMAS DE IRRIGAÇÃO PARA IMPLANTAÇÃO NA ÁREA DE ATUAÇÃO DA 16ª SR – MINAS GERAIS (COTA DE ATÉ 25% - RESERVADA PARA ME/EPP)
A75: ITEM | B75: CATMAT | C75: DESCRIÇÃO/ESPECIFICAÇÃO | D75: COTA/DECRETO | E75: UNIDA DE MEDIDA | F75: QUANTIDADE MÁXIMA ANUAL | G75: PREÇO UNITÁRIO (R$) | H75: PREÇO TOTAL (R$)
A76: =A73+1 -> 46 | B76: 470243 | C76: Sistema de irrigação por aspersão, malha fixa, com abrigo para o conjunto motobomba e capacidade para irrigar área de 1,0 hectare, para a tensão nominal de 127V. | D76: Cota de até 25% reservada para ME/EPP | E76: Unidade | F76: 2 | G76: 13362.56405 | H76: =F76*G76 -> 26725.1281
A77: 47 | B77: 470243 | C77: Sistema de Irrigação localizada, por microaspersão, com sistema de filtragem e fertirrigação, com capacidade para irrigar área de 1,0 hectare, para a tensão nominal de 127V. | D77: Cota de até 25% reservada para ME/EPP | E77: Unidade | F77: 1 | G77: 27008.7561 | H77: 27008.7561
A78: =A77+1 -> 48 | B78: 470243 | C78: Sistema de Irrigação localizada, por gotejamento, com sistema de filtragem e fertirrigação, com capacidade para irrigar área de 0,5 hectare, para a tensão nominal de 127V. | D78: Cota de até 25% reservada para ME/EPP | E78: Unidade | F78: 8 | G78: 18052.3395 | H78: 144418.716
A79: GRUPO 9 | B79: SISTEMAS DE IRRIGAÇÃO PARA IMPLANTAÇÃO NA ÁREA DE ATUAÇÃO DA 8ª SR – MARANHÃO (AMPLA CONCORRÊNCIA)
A80: ITEM | B80: CATMAT | C80: DESCRIÇÃO/ESPECIFICAÇÃO | D80: COTA/DECRETO | E80: UNIDA DE MEDIDA | F80: QUANTIDADE MÁXIMA ANUAL | G80: PREÇO UNITÁRIO (R$) | H80: PREÇO TOTAL (R$)
A81: =A78+1 -> 49 | B81: 470243 | C81: Sistema de irrigação por aspersão, malha fixa, com abrigo para o conjunto motobomba e capacidade para irrigar área de 1,0 hectare, para tensão nominal de 220V. | D81: Ampla concorrência | E81: Unidade | F81: 95 | G81: 13822.64405 | H81: =F81*G81 -> 1313151.185
A82: 50 | B82: 470243 | C82: Sistema de Irrigação localizada, por microaspersão, com sistema de filtragem e fertirrigação, com capacidade para irrigar área de 1,0 hectare, para tensão nominal de 220V. | D82: Ampla concorrência | E82: Unidade | F82: 47 | G82: 30840.6129 | H82: 1449508.806
A83: 51 | B83: 470243 | C83: Sistema de irrigação localizada, por microaspersão, fixo, com sistema de filtragem, abrigo para o conjunbto motobomba e capacidade para irrigar área de 0,50 hectare, para tensão nominal de 220V. | D83: Ampla concorrência | E83: Unidade | F83: 47 | G83: 19311.8919 | H83: 907658.9193
A84: 52 | B84: 470243 | C84: Sistema de Irrigação localizada, por gotejamento, com sistema de filtragem e fertirrigação, com capacidade para irrigar área de 1,0 hectare, para tensão nominal de 220V. | D84: Ampla concorrência | E84: Unidade | F84: 47 | G84: 31510.2703 | H84: 1480982.704
A85: 53 | B85: 470243 | C85: Sistema de Irrigação localizada, por gotejamento, com sistema de filtragem e fertirrigação, com capacidade para irrigar área de 0,5 hectare, para tensão nominal de 220V. | D85: Ampla concorrência | E85: Unidade | F85: 47 | G85: 19227.8343 | H85: 903708.2121
A86: 54 | B86: 470243 | C86: Minikit de irrigação com capacidade para 600 m2 de horta, 1.260 m2 de culturas temporárias ou 5.400 m2 de fruticultura, para tensão nominal de 220V. | D86: Ampla concorrência | E86: Unidade | F86: 475 | G86: 4354.625 | H86: 2068446.875
A87: GRUPO 10 | B87: SISTEMAS DE IRRIGAÇÃO PARA IMPLANTAÇÃO NA ÁREA DE ATUAÇÃO DA 8ª SR – MARANHÃO (COTA DE ATÉ 25% - RESERVADA PARA ME/EPP)
A88: ITEM | B88: CATMAT | C88: DESCRIÇÃO/ESPECIFICAÇÃO | D88: COTA/DECRETO | E88: UNIDA DE MEDIDA | F88: QUANTIDADE MÁXIMA ANUAL | G88: PREÇO UNITÁRIO (R$) | H88: PREÇO TOTAL (R$)
A89: =A86+1 -> 55 | B89: 470243 | C89: Sistema de irrigação por aspersão, malha fixa, com abrigo para o conjunto motobomba e capacidade para irrigar área de 1,0 hectare, para tensão nominal de 220V. | D89: Cota de até 25% reservada para ME/EPP | E89: Unidade | F89: 5 | G89: 13822.64405 | H89: =F89*G89 -> 69113.22026
A90: 56 | B90: 470243 | C90: Sistema de Irrigação localizada, por microaspersão, com sistema de filtragem e fertirrigação, com capacidade para irrigar área de 1,0 hectare, para tensão nominal de 220V. | D90: Cota de até 25% reservada para ME/EPP | E90: Unidade | F90: 3 | G90: 30840.6129 | H90: 92521.8387
A91: 57 | B91: 470243 | C91: Sistema de irrigação localizada, por microaspersão, fixo, com sistema de filtragem, abrigo para o conjunbto motobomba e capacidade para irrigar área de 0,50 hectare, para tensão nominal de 220V. | D91: Cota de até 25% reservada para ME/EPP | E91: Unidade | F91: 3 | G91: 19311.8919 | H91: 57935.6757
A92: 58 | B92: 470243 | C92: Sistema de Irrigação localizada, por gotejamento, com sistema de filtragem e fertirrigação, com capacidade para irrigar área de 1,0 hectare, para tensão nominal de 220V. | D92: Cota de até 25% reservada para ME/EPP | E92: Unidade | F92: 3 | G92: 31510.2703 | H92: 94530.8109
A93: 59 | B93: 470243 | C93: Sistema de Irrigação localizada, por gotejamento, com sistema de filtragem e fertirrigação, com capacidade para irrigar área de 0,5 hectare, para tensão nominal de 220V. | D93: Cota de até 25% reservada para ME/EPP | E93: Unidade | F93: 3 | G93: 19227.8343 | H93: 57683.5029
A94: 60 | B94: 470243 | C94: Minikit de irrigação com capacidade para 600 m2 de horta, 1.260 m2 de culturas temporárias ou 5.400 m2 de fruticultura, para tensão nominal de 220V. | D94: Cota de até 25% reservada para ME/EPP | E94: Unidade | F94: 25 | G94: 4354.625 | H94: 108865.625
A95: GRUPO 11 | B95: SISTEMAS DE IRRIGAÇÃO PARA IMPLANTAÇÃO NA ÁREA DE ATUAÇÃO DA 9ª SR – GOIÁS (AMPLA CONCORRÊNCIA)
A96: ITEM | B96: CATMAT | C96: DESCRIÇÃO/ESPECIFICAÇÃO | D96: COTA/DECRETO | E96: UNIDA DE MEDIDA | F96: QUANTIDADE MÁXIMA ANUAL | G96: PREÇO UNITÁRIO (R$) | H96: PREÇO TOTAL (R$)
A97: =A94+1 -> 61 | B97: 470243 | C97: Sistema de irrigação por aspersão, malha fixa, com abrigo para o conjunto motobomba e capacidade para irrigar área de 1,0 hectare, para tensão nominal de 220V. | D97: Ampla concorrência | E97: Unidade | F97: 95 | G97: 13522.62405 | H97: =F97*G97 -> 1284649.285
A98: 62 | B98: 470243 | C98: Sistema de Irrigação localizada, por microaspersão, com sistema de filtragem e fertirrigação, com capacidade para irrigar área de 1,0 hectare, para tensão nominal de 220V. | D98: Ampla concorrência | E98: Unidade | F98: 95 | G98: 30308.3473 | H98: 2879292.994
A99: 63 | B99: 470243 | C99: Sistema de irrigação localizada, por microaspersão, fixo, com sistema de filtragem, abrigo para o conjunbto motobomba e capacidade para irrigar área de 0,50 hectare, para tensão nominal de 220V. | D99: Ampla concorrência | E99: Unidade | F99: 66 | G99: 18022.5027 | H99: 1189485.178
A100: 64 | B100: 470243 | C100: Sistema de Irrigação localizada, por gotejamento, com sistema de filtragem e fertirrigação, com capacidade para irrigar área de 1,0 hectare, para tensão nominal de 220V. | D100: Ampla concorrência | E100: Unidade | F100: 95 | G100: 30946.0247 | H100: 2939872.346
A101: 65 | B101: 470243 | C101: Sistema de Irrigação localizada, por gotejamento, com sistema de filtragem e fertirrigação, com capacidade para irrigar área de 0,5 hectare, para tensão nominal de 220V. | D101: Ampla concorrência | E101: Unidade | F101: 66 | G101: 17935.4251 | H101: 1183738.057
A102: 66 | B102: 470243 | C102: Minikit de irrigação com capacidade para 600 m2 de horta, 1.260 m2 de culturas temporárias ou 5.400 m2 de fruticultura, para tensão nominal de 220V. | D102: Ampla concorrência | E102: Unidade | F102: 19 | G102: 4320.275 | H102: 82085.225
A103: GRUPO 12 | B103: SISTEMAS DE IRRIGAÇÃO PARA IMPLANTAÇÃO NA ÁREA DE ATUAÇÃO DA 9ª SR – GOIÁS (COTA DE ATÉ 25% - RESERVADA PARA ME/EPP)
A104: ITEM | B104: CATMAT | C104: DESCRIÇÃO/ESPECIFICAÇÃO | D104: COTA/DECRETO | E104: UNIDA DE MEDIDA | F104: QUANTIDADE MÁXIMA ANUAL | G104: PREÇO UNITÁRIO (R$) | H104: PREÇO TOTAL (R$)
A105: =A102+1 -> 67 | B105: 470243 | C105: Sistema de irrigação por aspersão, malha fixa, com abrigo para o conjunto motobomba e capacidade para irrigar área de 1,0 hectare, para tensão nominal de 220V. | D105: Cota de até 25% reservada para ME/EPP | E105: Unidade | F105: 5 | G105: 13522.62405 | H105: =F105*G105 -> 67613.12026
A106: 68 | B106: 470243 | C106: Sistema de Irrigação localizada, por microaspersão, com sistema de filtragem e fertirrigação, com capacidade para irrigar área de 1,0 hectare, para tensão nominal de 220V. | D106: Cota de até 25% reservada para ME/EPP | E106: Unidade | F106: 5 | G106: 30308.3473 | H106: 151541.7365
A107: 69 | B107: 470243 | C107: Sistema de irrigação localizada, por microaspersão, fixo, com sistema de filtragem, abrigo para o conjunbto motobomba e capacidade para irrigar área de 0,50 hectare, para tensão nominal de 220V. | D107: Cota de até 25% reservada para ME/EPP | E107: Unidade | F107: 4 | G107: 18022.5027 | H107: 72090.0108
A108: =A107+1 -> 70 | B108: 470243 | C108: Sistema de Irrigação localizada, por gotejamento, com sistema de filtragem e fertirrigação, com capacidade para irrigar área de 1,0 hectare, para tensão nominal de 220V. | D108: Cota de até 25% reservada para ME/EPP | E108: Unidade | F108: 5 | G108: 30946.0247 | H108: 154730.1235
A109: 71 | B109: 470243 | C109: Sistema de Irrigação localizada, por gotejamento, com sistema de filtragem e fertirrigação, com capacidade para irrigar área de 0,5 hectare, para tensão nominal de 220V. | D109: Cota de até 25% reservada para ME/EPP | E109: Unidade | F109: 4 | G109: 17935.4251 | H109: 71741.7004
A110: 72 | B110: 470243 | C110: Minikit de irrigação com capacidade para 600 m2 de horta, 1.260 m2 de culturas temporárias ou 5.400 m2 de fruticultura, para tensão nominal de 220V. | D110: Cota de até 25% reservada para ME/EPP | E110: Unidade | F110: 1 | G110: 4320.275 | H110: 4320.275
A111: GRUPO 13 | B111: SISTEMAS DE IRRIGAÇÃO PARA IMPLANTAÇÃO NA ÁREA DE ATUAÇÃO DA 10ª SR – TOCANTINS (AMPLA CONCORRÊNCIA)
A112: ITEM | B112: CATMAT | C112: DESCRIÇÃO/ESPECIFICAÇÃO | D112: COTA/DECRETO | E112: UNIDA DE MEDIDA | F112: QUANTIDADE MÁXIMA ANUAL | G112: PREÇO UNITÁRIO (R$) | H112: PREÇO TOTAL (R$)
A113: =A110+1 -> 73 | B113: 470243 | C113: Sistema de irrigação por aspersão, malha fixa, com abrigo para o conjunto motobomba e capacidade para irrigar área de 1,0 hectare, para tensão nominal de 220V. | D113: Ampla concorrência | E113: Unidade | F113: 19 | G113: 13598.11405 | H113: =F113*G113 -> 258364.167
A114: =A113+1 -> 74 | B114: 470243 | C114: Sistema de Irrigação localizada, por microaspersão, com sistema de filtragem e fertirrigação, com capacidade para irrigar área de 1,0 hectare, para tensão nominal de 220V. | D114: Ampla concorrência | E114: Unidade | F114: 19 | G114: 30435.6363 | H114: 578277.0897
A115: 75 | B115: 470243 | C115: Sistema de irrigação localizada, por microaspersão, fixo, com sistema de filtragem, abrigo para o conjunbto motobomba e capacidade para irrigar área de 0,50 hectare, para tensão nominal de 220V. | D115: Ampla concorrência | E115: Unidade | F115: 19 | G115: 18140.9763 | H115: 344678.5497
A116: 76 | B116: 470243 | C116: Sistema de Irrigação localizada, por gotejamento, com sistema de filtragem e fertirrigação, com capacidade para irrigar área de 1,0 hectare, para tensão nominal de 220V. | D116: Ampla concorrência | E116: Unidade | F116: 19 | G116: 31092.5537 | H116: 590758.5203
A117: 77 | B117: 470243 | C117: Sistema de Irrigação localizada, por gotejamento, com sistema de filtragem e fertirrigação, com capacidade para irrigar área de 0,5 hectare, para tensão nominal de 220V. | D117: Ampla concorrência | E117: Unidade | F117: 19 | G117: 18054.7487 | H117: 343040.2253
A118: 78 | B118: 470243 | C118: Minikit de irrigação com capacidade para 600 m2 de horta, 1.260 m2 de culturas temporárias ou 5.400 m2 de fruticultura, para tensão nominal de 220V. | D118: Ampla concorrência | E118: Unidade | F118: 19 | G118: 4326.015 | H118: 82194.285
A119: GRUPO 14 | B119: SISTEMAS DE IRRIGAÇÃO PARA IMPLANTAÇÃO NA ÁREA DE ATUAÇÃO DA 10ª SR – TOCANTINS (COTA DE ATÉ 25% - RESERVADA PARA ME/EPP)
A120: ITEM | B120: CATMAT | C120: DESCRIÇÃO/ESPECIFICAÇÃO | D120: COTA/DECRETO | E120: UNIDA DE MEDIDA | F120: QUANTIDADE MÁXIMA ANUAL | G120: PREÇO UNITÁRIO (R$) | H120: PREÇO TOTAL (R$)
A121: =A118+1 -> 79 | B121: 470243 | C121: Sistema de irrigação por aspersão, malha fixa, com abrigo para o conjunto motobomba e capacidade para irrigar área de 1,0 hectare, para tensão nominal de 220V. | D121: Cota de até 25% reservada para ME/EPP | E121: Unidade | F121: 1 | G121: 13598.11405 | H121: =F121*G121 -> 13598.11405
A122: 80 | B122: 470243 | C122: Sistema de Irrigação localizada, por microaspersão, com sistema de filtragem e fertirrigação, com capacidade para irrigar área de 1,0 hectare, para tensão nominal de 220V. | D122: Cota de até 25% reservada para ME/EPP | E122: Unidade | F122: 1 | G122: 30435.6363 | H122: 30435.6363
A123: 81 | B123: 470243 | C123: Sistema de irrigação localizada, por microaspersão, fixo, com sistema de filtragem, abrigo para o conjunbto motobomba e capacidade para irrigar área de 0,50 hectare, para tensão nominal de 220V. | D123: Cota de até 25% reservada para ME/EPP | E123: Unidade | F123: 1 | G123: 18140.9763 | H123: 18140.9763
A124: 82 | B124: 470243 | C124: Sistema de Irrigação localizada, por gotejamento, com sistema de filtragem e fertirrigação, com capacidade para irrigar área de 1,0 hectare, para tensão nominal de 220V. | D124: Cota de até 25% reservada para ME/EPP | E124: Unidade | F124: 1 | G124: 31092.5537 | H124: 31092.5537
A125: 83 | B125: 470243 | C125: Sistema de Irrigação localizada, por gotejamento, com sistema de filtragem e fertirrigação, com capacidade para irrigar área de 0,5 hectare, para tensão nominal de 220V. | D125: Cota de até 25% reservada para ME/EPP | E125: Unidade | F125: 1 | G125: 18054.7487 | H125: 18054.7487
A126: =A125+1 -> 84 | B126: 470243 | C126: Minikit de irrigação com capacidade para 600 m2 de horta, 1.260 m2 de culturas temporárias ou 5.400 m2 de fruticultura, para tensão nominal de 220V. | D126: Cota de até 25% reservada para ME/EPP | E126: Unidade | F126: 1 | G126: 4326.015 | H126: 4326.015
A127: GRUPO 15 | B127: SISTEMAS DE IRRIGAÇÃO PARA IMPLANTAÇÃO NA ÁREA DE ATUAÇÃO DA 11ª SR – AMAPÁ (AMPLA CONCORRÊNCIA)
A128: ITEM | B128: CATMAT | C128: DESCRIÇÃO/ESPECIFICAÇÃO | D128: COTA/DECRETO | E128: UNIDA DE MEDIDA | F128: QUANTIDADE MÁXIMA ANUAL | G128: PREÇO UNITÁRIO (R$) | H128: PREÇO TOTAL (R$)
A129: =A126+1 -> 85 | B129: 470243 | C129: Sistema de irrigação por aspersão, malha fixa, com abrigo para o conjunto motobomba e capacidade para irrigar área de 1,0 hectare, para a tensão nominal de 127V. | D129: Ampla concorrência | E129: Unidade | F129: 142 | G129: 18992.99905 | H129: =F129*G129 -> 2697005.865
A130: =A129+1 -> 86 | B130: 470243 | C130: Sistema de Irrigação localizada, por microaspersão, com sistema de filtragem e fertirrigação, com capacidade para irrigar área de 1,0 hectare, para a tensão nominal de 127V. | D130: Ampla concorrência | E130: Unidade | F130: 142 | G130: 25512.6478 | H130: 3622795.988
A131: =A130+1 -> 87 | B131: 470243 | C131: Sistema de Irrigação localizada, por microaspersão, com sistema de filtragem e fertirrigação, com capacidade para irrigar área de 0,5 hectare, para a tensão nominal de 127V. | D131: Ampla concorrência | E131: Unidade | F131: 76 | G131: 18743.9425 | H131: 1424539.63
A132: 88 | B132: 470243 | C132: Sistema de Irrigação localizada, por gotejamento, com sistema de filtragem e fertirrigação, com capacidade para irrigar área de 1,0 hectare, para a tensão nominal de 127V. | D132: Ampla concorrência | E132: Unidade | F132: 76 | G132: 27602.7515 | H132: 2097809.114
A133: 89 | B133: 470243 | C133: Sistema de Irrigação localizada, por gotejamento, com sistema de filtragem e fertirrigação, com capacidade para irrigar área de 0,5 hectare, para a tensão nominal de 127V. | D133: Ampla concorrência | E133: Unidade | F133: 76 | G133: 17970.5113 | H133: 1365758.859
A134: 90 | B134: 470243 | C134: Minikit de irrigação com capacidade para 600 m2 de horta, 1.260 m2 de culturas temporárias ou 5.400 m2 de fruticultura, para tensão nominal de 127V. | D134: Ampla concorrência | E134: Unidade | F134: 76 | G134: 4415.265 | H134: 335560.14
A135: 91 | B135: 470243 | C135: Sistema de irrigação por aspersão, malha fixa, com abrigo para o conjunto motobomba e capacidade para irrigar área de 1,0 hectare, para tensão nominal de 220V. | D135: Ampla concorrência | E135: Unidade | F135: 142 | G135: 18992.99905 | H135: 2697005.865
A136: 92 | B136: 470243 | C136: Sistema de Irrigação localizada, por microaspersão, com sistema de filtragem e fertirrigação, com capacidade para irrigar área de 1,0 hectare, para tensão nominal de 220V. | D136: Ampla concorrência | E136: Unidade | F136: 142 | G136: 28415.8578 | H136: 4035051.808
A137: 93 | B137: 470243 | C137: Sistema de irrigação localizada, por microaspersão, fixo, com sistema de filtragem, abrigo para o conjunbto motobomba e capacidade para irrigar área de 0,50 hectare, para tensão nominal de 220V. | D137: Ampla concorrência | E137: Unidade | F137: 76 | G137: 18670.2345 | H137: 1418937.822
A138: 94 | B138: 470243 | C138: Sistema de Irrigação localizada, por gotejamento, com sistema de filtragem e fertirrigação, com capacidade para irrigar área de 1,0 hectare, para tensão nominal de 220V. | D138: Ampla concorrência | E138: Unidade | F138: 76 | G138: 30505.9615 | H138: 2318453.074
A139: 95 | B139: 470243 | C139: Sistema de Irrigação localizada, por gotejamento, com sistema de filtragem e fertirrigação, com capacidade para irrigar área de 0,5 hectare, para tensão nominal de 220V. | D139: Ampla concorrência | E139: Unidade | F139: 76 | G139: 17896.8033 | H139: 1360157.051
A140: 96 | B140: 470243 | C140: Minikit de irrigação com capacidade para 600 m2 de horta, 1.260 m2 de culturas temporárias ou 5.400 m2 de fruticultura, para tensão nominal de 220V. | D140: Ampla concorrência | E140: Unidade | F140: 76 | G140: 4415.265 | H140: 335560.14
A141: GRUPO 16 | B141: SISTEMAS DE IRRIGAÇÃO PARA IMPLANTAÇÃO NA ÁREA DE ATUAÇÃO DA 11ª SR – AMAPÁ (COTA DE ATÉ 25% - RESERVADA PARA ME/EPP)
A142: ITEM | B142: CATMAT | C142: DESCRIÇÃO/ESPECIFICAÇÃO | D142: COTA/DECRETO | E142: UNIDA DE MEDIDA | F142: QUANTIDADE MÁXIMA ANUAL | G142: PREÇO UNITÁRIO (R$) | H142: PREÇO TOTAL (R$)
A143: =A140+1 -> 97 | B143: 470243 | C143: Sistema de irrigação por aspersão, malha fixa, com abrigo para o conjunto motobomba e capacidade para irrigar área de 1,0 hectare, para a tensão nominal de 127V. | D143: Cota de até 25% reservada para ME/EPP | E143: Unidade | F143: 8 | G143: 18992.99905 | H143: =F143*G143 -> 151943.9924
A144: =A143+1 -> 98 | B144: 470243 | C144: Sistema de Irrigação localizada, por microaspersão, com sistema de filtragem e fertirrigação, com capacidade para irrigar área de 1,0 hectare, para a tensão nominal de 127V. | D144: Cota de até 25% reservada para ME/EPP | E144: Unidade | F144: 8 | G144: 25512.6478 | H144: 204101.1824
A145: =A144+1 -> 99 | B145: 470243 | C145: Sistema de Irrigação localizada, por microaspersão, com sistema de filtragem e fertirrigação, com capacidade para irrigar área de 0,5 hectare, para a tensão nominal de 127V. | D145: Cota de até 25% reservada para ME/EPP | E145: Unidade | F145: 4 | G145: 18743.9425 | H145: 74975.77
A146: 100 | B146: 470243 | C146: Sistema de Irrigação localizada, por gotejamento, com sistema de filtragem e fertirrigação, com capacidade para irrigar área de 1,0 hectare, para a tensão nominal de 127V. | D146: Cota de até 25% reservada para ME/EPP | E146: Unidade | F146: 4 | G146: 27602.7515 | H146: 110411.006
A147: 101 | B147: 470243 | C147: Sistema de Irrigação localizada, por gotejamento, com sistema de filtragem e fertirrigação, com capacidade para irrigar área de 0,5 hectare, para a tensão nominal de 127V. | D147: Cota de até 25% reservada para ME/EPP | E147: Unidade | F147: 4 | G147: 17970.5113 | H147: 71882.0452
A148: 102 | B148: 470243 | C148: Minikit de irrigação com capacidade para 600 m2 de horta, 1.260 m2 de culturas temporárias ou 5.400 m2 de fruticultura, para tensão nominal de 127V. | D148: Cota de até 25% reservada para ME/EPP | E148: Unidade | F148: 4 | G148: 4415.265 | H148: 17661.06
A149: 103 | B149: 470243 | C149: Sistema de irrigação por aspersão, malha fixa, com abrigo para o conjunto motobomba e capacidade para irrigar área de 1,0 hectare, para tensão nominal de 220V. | D149: Cota de até 25% reservada para ME/EPP | E149: Unidade | F149: 8 | G149: 18992.99905 | H149: 151943.9924
A150: 104 | B150: 470243 | C150: Sistema de Irrigação localizada, por microaspersão, com sistema de filtragem e fertirrigação, com capacidade para irrigar área de 1,0 hectare, para tensão nominal de 220V. | D150: Cota de até 25% reservada para ME/EPP | E150: Unidade | F150: 8 | G150: 28415.8578 | H150: 227326.8624
A151: 105 | B151: 470243 | C151: Sistema de irrigação localizada, por microaspersão, fixo, com sistema de filtragem, abrigo para o conjunbto motobomba e capacidade para irrigar área de 0,50 hectare, para tensão nominal de 220V. | D151: Cota de até 25% reservada para ME/EPP | E151: Unidade | F151: 4 | G151: 18670.2345 | H151: 74680.938
A152: 106 | B152: 470243 | C152: Sistema de Irrigação localizada, por gotejamento, com sistema de filtragem e fertirrigação, com capacidade para irrigar área de 1,0 hectare, para tensão nominal de 220V. | D152: Cota de até 25% reservada para ME/EPP | E152: Unidade | F152: 4 | G152: 30505.9615 | H152: 122023.846
A153: 107 | B153: 470243 | C153: Sistema de Irrigação localizada, por gotejamento, com sistema de filtragem e fertirrigação, com capacidade para irrigar área de 0,5 hectare, para tensão nominal de 220V. | D153: Cota de até 25% reservada para ME/EPP | E153: Unidade | F153: 4 | G153: 17896.8033 | H153: 71587.2132
A154: 108 | B154: 470243 | C154: Minikit de irrigação com capacidade para 600 m2 de horta, 1.260 m2 de culturas temporárias ou 5.400 m2 de fruticultura, para tensão nominal de 220V. | D154: Cota de até 25% reservada para ME/EPP | E154: Unidade | F154: 4 | G154: 4415.265 | H154: 17661.06
A155: GRUPO 17 | B155: SISTEMAS DE IRRIGAÇÃO PARA IMPLANTAÇÃO NA ÁREA DE ATUAÇÃO DA 12ª SR – RIO GRANDE DO NORTE (AMPLA CONCORRÊNCIA)
A156: ITEM | B156: CATMAT | C156: DESCRIÇÃO/ESPECIFICAÇÃO | D156: COTA/DECRETO | E156: UNIDA DE MEDIDA | F156: QUANTIDADE MÁXIMA ANUAL | G156: PREÇO UNITÁRIO (R$) | H156: PREÇO TOTAL (R$)
A157: =A154+1 -> 109 | B157: 470243 | C157: Sistema de irrigação por aspersão, malha fixa, com abrigo para o conjunto motobomba e capacidade para irrigar área de 1,0 hectare, para tensão nominal de 220V. | D157: Ampla concorrência | E157: Unidade | F157: 19 | G157: 13478.17405 | H157: =F157*G157 -> 256085.307
A158: =A157+1 -> 110 | B158: 470243 | C158: Sistema de Irrigação localizada, por microaspersão, com sistema de filtragem e fertirrigação, com capacidade para irrigar área de 1,0 hectare, para tensão nominal de 220V. | D158: Ampla concorrência | E158: Unidade | F158: 19 | G158: 30997.892 | H158: 588959.948
A159: 111 | B159: 470243 | C159: Sistema de irrigação localizada, por microaspersão, fixo, com sistema de filtragem, abrigo para o conjunbto motobomba e capacidade para irrigar área de 0,50 hectare, para tensão nominal de 220V. | D159: Ampla concorrência | E159: Unidade | F159: 47 | G159: 18005.0312 | H159: 846236.4664
A160: 112 | B160: 470243 | C160: Sistema de Irrigação localizada, por gotejamento, com sistema de filtragem e fertirrigação, com capacidade para irrigar área de 1,0 hectare, para tensão nominal de 220V. | D160: Ampla concorrência | E160: Unidade | F160: 19 | G160: 31624.5294 | H160: 600866.0586
A161: 113 | B161: 470243 | C161: Sistema de Irrigação localizada, por gotejamento, com sistema de filtragem e fertirrigação, com capacidade para irrigar área de 0,5 hectare, para tensão nominal de 220V. | D161: Ampla concorrência | E161: Unidade | F161: 47 | G161: 17915.4436 | H161: 842025.8492
A162: 114 | B162: 470243 | C162: Minikit de irrigação com capacidade para 600 m2 de horta, 1.260 m2 de culturas temporárias ou 5.400 m2 de fruticultura, para tensão nominal de 220V. | D162: Ampla concorrência | E162: Unidade | F162: 142 | G162: 4340.885 | H162: 616405.67
A163: GRUPO 18 | B163: SISTEMAS DE IRRIGAÇÃO PARA IMPLANTAÇÃO NA ÁREA DE ATUAÇÃO DA 12ª SR – RIO GRANDE DO NORTE (COTA DE ATÉ 25% - RESERVADA PARA ME/EPP)
A164: ITEM | B164: CATMAT | C164: DESCRIÇÃO/ESPECIFICAÇÃO | D164: COTA/DECRETO | E164: UNIDA DE MEDIDA | F164: QUANTIDADE MÁXIMA ANUAL | G164: PREÇO UNITÁRIO (R$) | H164: PREÇO TOTAL (R$)
A165: =A162+1 -> 115 | B165: 470243 | C165: Sistema de irrigação por aspersão, malha fixa, com abrigo para o conjunto motobomba e capacidade para irrigar área de 1,0 hectare, para tensão nominal de 220V. | D165: Cota de até 25% reservada para ME/EPP | E165: Unidade | F165: 1 | G165: 13478.17405 | H165: =F165*G165 -> 13478.17405
A166: 116 | B166: 470243 | C166: Sistema de Irrigação localizada, por microaspersão, com sistema de filtragem e fertirrigação, com capacidade para irrigar área de 1,0 hectare, para tensão nominal de 220V. | D166: Cota de até 25% reservada para ME/EPP | E166: Unidade | F166: 1 | G166: 30997.892 | H166: 30997.892
A167: 117 | B167: 470243 | C167: Sistema de irrigação localizada, por microaspersão, fixo, com sistema de filtragem, abrigo para o conjunbto motobomba e capacidade para irrigar área de 0,50 hectare, para tensão nominal de 220V. | D167: Cota de até 25% reservada para ME/EPP | E167: Unidade | F167: 3 | G167: 18005.0312 | H167: 54015.0936
A168: 118 | B168: 470243 | C168: Sistema de Irrigação localizada, por gotejamento, com sistema de filtragem e fertirrigação, com capacidade para irrigar área de 1,0 hectare, para tensão nominal de 220V. | D168: Cota de até 25% reservada para ME/EPP | E168: Unidade | F168: 1 | G168: 31624.5294 | H168: 31624.5294
A169: 119 | B169: 470243 | C169: Sistema de Irrigação localizada, por gotejamento, com sistema de filtragem e fertirrigação, com capacidade para irrigar área de 0,5 hectare, para tensão nominal de 220V. | D169: Cota de até 25% reservada para ME/EPP | E169: Unidade | F169: 3 | G169: 17915.4436 | H169: 53746.3308
A170: 120 | B170: 470243 | C170: Minikit de irrigação com capacidade para 600 m2 de horta, 1.260 m2 de culturas temporárias ou 5.400 m2 de fruticultura, para tensão nominal de 220V. | D170: Cota de até 25% reservada para ME/EPP | E170: Unidade | F170: 8 | G170: 4340.885 | H170: 34727.08
A171: Valor total da licitação | H171: =SUM(H17:H170) -> 93079842.12
